Cogmind - Beta 14 @@@ ROGUE MODE // 2025.04.27 @ 22:36:21 Player: DuckBoy Result: Destroyed by G-47 Trooper with Particle Gun Performance ------------- Evolutions (0) 0 Regions Visited (1) 200 Robots Destroyed (18) 90 Value Destroyed (423) 423 Prototype IDs (2) 40 Alien Tech Used (0) 0 Bonus (0) 0 TOTAL SCORE: 753 Bonus ------- None Cogmind --------- Core Integrity 0/250 Matter 242/300 Energy 100/100 System Corruption 11% Temperature Cool (9) Movement Core (1400) Ox27 Location -10/Materials Parts ------- > --- POWER (1) -------- (None) > --- PROPULSION (2) --- (None) > --- UTILITY (2) ------ Huge Storage Unit > --- WEAPON (2) ------- Medium Laser Mining Claw > --- INVENTORY (25) --- Light Ion Engine Light Treads Light Treads Compact Wheel Compact Wheel Compact Wheel Compact Wheel Weapon Shielding EM Pulse Gun Medium Laser Peak State ------------ > --- POWER ------------ Light Ion Engine > --- PROPULSION ------- Light Treads Light Treads > --- UTILITY ---------- Small Storage Unit Huge Storage Unit > --- WEAPON ----------- EM Pulse Gun Medium Laser > --- INVENTORY -------- Light Treads Light Treads Wheel Medium Laser [Rating: 7] Favorites ----------- Power Light Ion Engine Engine Light Ion Engine Propulsion Light Treads Treads Light Treads Wheel Wheel Utility Huge Storage Unit Storage Huge Storage Unit Protection Weapon Shielding Weapon Medium Laser Energy Gun Medium Laser Slashing Weapon Mining Claw Build | -11 -10 ------- Run | Yrd Mat Slots Evolved . | . . Power . | . . Propulsion . | . . Utility . | . . Weapon . | . . Parts Attached 22 | 6 16 Power 4 | 1 3 Engine 4 | 1 3 Core . | . . Reactor . | . . Propulsion 11 | 2 9 Treads 8 | 2 6 Leg . | . . Wheel 3 | . 3 Hover . | . . Flight . | . . Utility 3 | 1 2 Device . | . . Storage 2 | 1 1 Processor . | . . Hackware . | . . Protection 1 | . 1 Artifact . | . . Weapon 4 | 2 2 Energy Gun 3 | 2 1 Energy Cannon . | . . Ballistic Gun . | . . Ballistic Cannon . | . . Launcher . | . . Special Weapon . | . . Impact Weapon . | . . Slashing Weapon 1 | . 1 Piercing Weapon . | . . Special Melee Weapon . | . . Unidentified Prototypes . | . . Parts Lost 8 | . 8 Power 3 | . 3 Propulsion 4 | . 4 Utility 1 | . 1 Weapon . | . . Highest Loss Streak 3 | . 3 To Critical Strikes . | . . Average Slot Usage (%) 85 | . 85 Engine 6 | . 6 Treads 22 | . 22 Wheel 3 | . 3 Storage 14 | . 14 Protection 9 | . 9 Energy Gun 25 | . 25 Slashing Weapon 2 | . 2 Peak Build Rating 7 | 6 7 Average Rating 5 | 4 6 On Entrance 3 | . 6 Naked Turns . | . . Heaviest Build 90 | 12 90 Greatest Support 40 | 40 40 Greatest Overweight (x) 29 | . 29 Average Overweight (x) 2 | . 3 Largest Inventory Capacity 25 | 8 25 Average Capacity 22 | 6 23 Most Carried 10 | 3 10 Average Carried 5 | 1 5 Final Capacity 25 | 8 25 Final Carried 10 | 3 10 Class Distribution -------------------- 100% | Mutant Dominant Class ---------------- Mutant | -10/Materials Resources | -11 -10 ----------- Run | Yrd Mat Matter Collected 362 | 247 115 Remotely . | . . Salvage Created 748 | . 748 Parts 27 | . 27 Haulers Intercepted 2 | . 2 Recyclers Shooed . | . . Parts Field Recycled . | . . Retrieved Matter . | . . Parts Self-Destructed . | . . Prevented . | . . Kills | -11 -10 ------- Run | Yrd Mat Combat Hostiles Destroyed 12 | . 12 Guns 11 | . 11 Classes Destroyed 5 | . 5 Worker 2 | . 2 Hauler 2 | . 2 Watcher 2 | . 2 Swarmer 3 | . 3 Grunt 9 | . 9 Best Kill Streak 4 | . 4 Combat Bots Only 3 | . 3 Max Kills in Single Turn 1 | . 1 Gunslinging . | . . Exploded . | . . Melee . | . . Uniques/NPCs Destroyed . | . . Combat | -11 -10 -------- Run | Yrd Mat Hostile Shots Fired 104 | . 104 Missed 31 | . 31 Damage Taken 1252 | . 1252 Core 254 | . 254 Absorbed by Shields . | . . Redirected to Shielding 28 | . 28 Regen/Repaired (Parts) 126 | . 126 Core Remaining (%) 100 | 100 . Volleys Fired 71 | . 71 Largest 2 | . 2 Hottest 100 | . 100 Shots Fired 135 | . 135 Gun 135 | . 135 Cannon . | . . Launcher . | . . Special . | . . Kinetic . | . . Thermal 113 | . 113 Explosive . | . . Electromagnetic 22 | . 22 Robot Hit Streak 11 | . 11 Robot Miss Streak 5 | . 5 Penetration Max . | . . Secondary Targets 3 | . 3 Max Gunslinging Chain 1 | . 1 Shots Hit Robots 95 | . 95 Core Hits 35 | . 35 Critical Kills . | . . Critical Parts Destroyed . | . . Critical Strikes 9 | . 9 Burn 9 | . 9 Melee Attacks 20 | . 20 Impact . | . . Slashing 20 | . 20 Piercing . | . . Sneak Attacks . | . . Combat Hostiles . | . . Follow-up Attacks . | . . Damage Inflicted 1268 | . 1268 Guns 1093 | . 1093 Cannons . | . . Explosions . | . . Melee 167 | . 167 Ramming 8 | . 8 Kinetic . | . . Thermal 881 | . 881 Explosive . | . . Electromagnetic 212 | . 212 Impact . | . . Slashing 167 | . 167 Piercing . | . . Highest Corruption 11 | . 11 Average Corruption 3 | . 3 Corruption Purged . | . . Corruption Blocked . | . . Effects 14 | . 14 Message Errors 3 | . 3 Matter Fused 2 | . 2 Heat Flow Errors 5 | . 5 Energy Discharges 1 | . 1 Data Loss (minor) 2 | . 2 Misfires 1 | . 1 Overload Shots . | . . Overflow Damage . | . . Projectiles . | . . Explosions . | . . Melee . | . . Knockbacks . | . . Impact . | . . Kinetic . | . . Secondary . | . . Self-Inflicted Damage . | . . Shots . | . . Rammed 1 | . 1 Targets Rammed 2 | . 2 Kicked . | . . Crushed 1 | . 1 Highest Temperature 338 | . 338 Average Temperature 100 | . 100 Received Heat Transfer 489 | . 489 Effects 1 | . 1 Shutdowns 1 | . 1 Siege Activations . | . . Robots Corrupted . | . . Combat Hostiles . | . . Parts Fried . | . . Impact Corruptions . | . . Robots Melted 1 | . 1 Combat Hostiles 1 | . 1 Parts Melted 4 | . 4 Heat Transferred 3293 | . 3293 Parts Sabotaged . | . . Parts Stolen . | . . Parts Stripped . | . . Power Chain Reactions . | . . Alert | -11 -10 ------- Run | Yrd Mat Peak Influence 283 | . 283 Initial . | . . Average 76 | . 80 Maximum Alert Level 1 | . 1 Low Security (%) 92 | 100 91 Level 1 7 | . 8 Level 2 . | . . Level 3 . | . . Level 4 . | . . Level 5 . | . . High Security . | . . Max Security . | . . Squads Dispatched 4 | . 4 Investigation 2 | . 2 Extermination . | . . Reinforcement 2 | . 2 Assault . | . . Garrison . | . . Intercept . | . . Searches Triggered . | . . Construction Impeded . | . . Haulers Reinforced . | . . Active Scanning Responses . | . . Cargo Convoy Interrupts . | . . Stealth | -11 -10 --------- Run | Yrd Mat Distress Signals . | . . Communications Jammed . | . . Distress Signals . | . . Times Spotted 26 | . 26 Peak Tracking Total 4 | . 4 Tactical Retreats 1 | . 1 Traps | -11 -10 ------- Run | Yrd Mat Traps Triggered 3 | . 3 Indirectly . | . . Trap Hack Attempts . | . . Triggered . | . . Disarmed . | . . Reprogrammed . | . . Reused . | . . Traps Extracted . | . . Installed . | . . Triggered . | . . Machines | -11 -10 ---------- Run | Yrd Mat Machines Disabled 1 | . 1 Max in Single Turn 1 | . 1 Machines Repaired . | . . Machines Dismantled . | . . Machines Sabotaged . | . . Overloaded Fab Kills . | . . Hacking | -11 -10 --------- Run | Yrd Mat Machines Accessed 4 | . 4 Terminals 3 | . 3 Fabricators . | . . Repair Stations 1 | . 1 Recycling Units . | . . Scanalyzers . | . . Garrison Access . | . . Total Hacks 15 | . 15 Successful 5 | . 5 Failed 10 | . 10 Catastrophic . | . . Database Lockouts . | . . Manual . | . . Terminals 6 | . 6 Fabricators . | . . Repair Stations 9 | . 9 Recycling Units . | . . Scanalyzers . | . . Garrison Access . | . . Terminal Hacks 3 | . 3 Prototype ID Bank 1 | . 1 Emergency Access Points 1 | . 1 Terminal Index 1 | . 1 Fabricator Hacks . | . . Repair Station Hacks 2 | . 2 Scan Component 1 | . 1 Repair 1 | . 1 Recycling Unit Hacks . | . . Scanalyzer . | . . Garrison Access Hacks . | . . Unauthorized Hacks . | . . Terminals . | . . Fabricators . | . . Repair Stations . | . . Recycling Units . | . . Scanalyzers . | . . Garrison Access . | . . Data Cores Recovered . | . . Used . | . . Hacking Detections 3 | . 3 Full Trace Events 1 | . 1 Feedback Events . | . . Feedback Blocked . | . . Robot Schematics Acquired . | . . Robots Built . | . . Authchips . | . . Time . | . . Total Robot Build Rating . | . . Part Schematics Acquired . | . . Parts Built . | . . Authchips . | . . Time . | . . Total Part Build Rating . | . . Parts Repaired 1 | . 1 Time 26 | . 26 Parts Recycled . | . . Recycled Matter . | . . Retrieved Matter . | . . Retrieved Components . | . . Parts Scanalyzed . | . . Part Schematics Acquired . | . . Parts Damaged . | . . Bothacking | -11 -10 ------------ Run | Yrd Mat Used RIF Installer . | . . Robots Hacked . | . . Non-combat . | . . Combat . | . . Robot Hacks Applied . | . . Relay Couplers Released . | . . Fabnet Peak Effective % . | . . Robots Rewired . | . . Allies Hacked . | . . Hacks Repelled . | . . Allies | -11 -10 -------- Run | Yrd Mat Total Allies . | . . Largest Group . | . . Highest-Rated Group . | . . Highest-Rated Ally . | . . Total Orders . | . . Ally Attacks . | . . Total Damage . | . . Kills . | . . Allies Corrupted . | . . Allies Melted . | . . Intel | -11 -10 ------- Run | Yrd Mat Robot Analysis Total . | . . Derelict Logs Recovered . | . . Drone Launches . | . . Drone Recoveries . | . . Exploration | -11 -10 ------------- Run | Yrd Mat Turns Passed 1735 | 85 1650 Spaces Moved 517 | 51 466 Core 8 | 7 1 Treads 355 | 44 311 Legs . | . . Wheels 154 | . 154 Hover . | . . Flight . | . . Fastest Speed 50 | 50 130 Average Speed 248 | 144 260 Slowest Speed 1500 | 160 1500 Overloaded Moves . | . . Propulsion Burnouts . | . . Robots Hopped . | . . Cave-ins Triggered 1 | . 1 Exploration Rate (%) 39 | 3 76 Regions Visited 1 Branch Regions . Pre-discovered Areas . | . . Known Exits Taken . | . . Unknown Exits Taken 1 | 1 . Scrap Searched . | . . Spaces Dug 6 | . 6 Terrain Destroyed 6 | . 6 Melee 6 | . 6 Projectile . | . . AOE . | . . Terrain Rammed . | . . Walls Destroyed . | . . Machines Disabled . | . . Actions | -11 -10 --------- Run | Yrd Mat Total 779 | 59 720 Wait 135 | . 135 Move 516 | 50 466 Hop . | . . Pick Up 12 | 3 9 Fast Attach 12 | 6 6 Attach 3 | . 3 Detach . | . . Swap 7 | . 7 Drop 1 | . 1 Fire 71 | . 71 Melee 20 | . 20 Ram . | . . Kick . | . . Crush 2 | . 2 Escape Stasis . | . . Rewire . | . . Trap . | . . Miscellaneous . | . . Route ------- -11/Scrapyard -10/Materials (discovered 3 exits: [*Mat] / [*Min x2]) History --------- Turn | Location | Event 4 | -11/Scrapyard | Discovered new exit (range 16) 86 | -11/Scrapyard | Entered Materials 302 | -10/Materials | Build established: Mutant 607 | -10/Materials | Repaired Lgt. Treads 1335 | -10/Materials | Discovered new exit (range 16) 1428 | -10/Materials | Discovered new exit (range 10) 1489 | -10/Materials | Crushed by falling debris 1489 | -10/Materials | Core integrity fell below 50% 1489 | -10/Materials | System corruption reached 10% 1520 | -10/Materials | Lost 3 parts (1p1n1u) 1626 | -10/Materials | Discovered new exit (range 12) 1717 | -10/Materials | Core integrity fell below 20% 1736 | -10/Materials | Destroyed by G-47 Trooper with Particle Gun Last Messages --------------- >>Index(Terminals) Found 8 terminals. Downloaded coordinate data. 01550_ System corrupted: Heat flow error (+254). 01565_ System corrupted: Heat flow error (+226). 01580_ System corrupted: FCS attempts to trigger Med. Laser. 01580_ System corrupted: Med. Laser misfires. 01593_ Acquired Com. Wheel. 01597_ System corrupted: Matter fused (-8). 01597_ Acquired Com. Wheel. 01613_ System corrupted: Component data lost. 01626_ EXIT=FOUND 01655_ System corrupted: Heat flow error (+274). 01679_ System corrupted: Energy discharge (-31). 01681_ U-05 Engineer builds a Wall. 01701_ MWNWUO,4TA6